fUST/lending_fUST_20250912
["ID","MTS","AMOUNT","RATE_DAILY","PERIOD"]
[385125397,1757667058956,-418.889356,0.00015616,2]
[385125399,1757667058968,-418.889356,0.00015616,2]
[385125401,1757667058977,-480.0,0.00015616,2]
[385125403,1757667058987,-418.889356,0.00015616,2]
[385125405,1757667058996,-151.0,0.00015616,2]
[385125407,1757667059005,-418.889356,0.00015616,2]
[385125409,1757667059014,-480.0,0.00015616,2]
[385125411,1757667059023,-480.0,0.00015616,2]
[385125414,1757667059033,-480.0,0.00015616,2]
[385125416,1757667059043,-2810.72,0.00015616,2]
[385125417,1757667059052,-480.0,0.00015616,2]
[385125419,1757667059062,-480.0,0.00015616,2]
[385125421,1757667059071,-480.0,0.00015616,2]
[385125423,1757667059080,-480.0,0.00015616,2]
[385125425,1757667059089,-480.0,0.00015616,2]
[385125427,1757667059098,-480.0,0.00015616,2]
[385125429,1757667059108,-480.0,0.00015616,2]
[385125431,1757667059117,-1745.75,0.00015616,2]
[385125433,1757667059126,-480.0,0.00015616,2]
[385125435,1757667059135,-287.76671787,0.00015616,2]
[385125437,1757667059145,-394.24736633,0.00015675,2]
[385125439,1757667059155,-250.0,0.00015734,2]
[385125441,1757667059165,-4761.90329949,0.00015821,2]
[385125443,1757667059174,-480.0,0.0001589,2]
[385125445,1757667059184,-480.0,0.0001589,2]
[385125447,1757667059193,-151.0,0.0001589,2]
[385125449,1757667059203,-319.23024668,0.0001589,2]
[385125451,1757667059212,-480.0,0.0001589,2]
[385125453,1757667059221,-480.0,0.0001589,2]
[385125455,1757667059230,-480.0,0.0001589,2]
[385125457,1757667059239,-151.0,0.0001589,2]
[385125459,1757667059251,-151.0,0.0001589,2]
[385125461,1757667059260,-151.0,0.0001589,2]
[385125463,1757667059270,-480.0,0.0001589,2]
[385125465,1757667059279,-480.0,0.0001589,2]
[385125467,1757667059288,-480.0,0.0001589,2]
[385125469,1757667059298,-480.0,0.0001589,2]
[385125471,1757667059307,-163.288962,0.0001589,2]
[385125473,1757667059316,-163.288962,0.0001589,2]
[385125475,1757667059326,-163.288962,0.0001589,2]
[385125477,1757667059335,-160.470075,0.0001589,2]
[385125479,1757667059344,-151.0,0.0001589,2]
[385125481,1757667059354,-163.288962,0.0001589,2]
[385125483,1757667059362,-480.0,0.0001589,2]
[385125485,1757667059372,-480.0,0.0001589,2]
[385125487,1757667059381,-485.3980371,0.0001589,2]
[385125489,1757667059390,-233.851948,0.0001589,2]
[385125491,1757667059399,-480.0,0.0001589,2]
[385125493,1757667059409,-151.0,0.0001589,2]
[385125495,1757667059418,-480.0,0.0001589,2]
[385125497,1757667059426,-480.0,0.0001589,2]
[385125499,1757667059436,-480.0,0.0001589,2]
[385125501,1757667059445,-187.55080197,0.0001589,2]
[385125503,1757667059454,-480.0,0.0001589,2]
[385125505,1757667059464,-480.0,0.0001589,2]
[385125507,1757667059473,-480.0,0.0001589,2]
[385125509,1757667059482,-480.0,0.0001589,2]
[385125511,1757667059491,-480.0,0.0001589,2]
[385125513,1757667059500,-480.0,0.0001589,2]
[385125515,1757667059510,-480.0,0.0001589,2]
[385125517,1757667059519,-480.0,0.0001589,2]
[385125519,1757667059529,-484.22,0.0001589,2]
[385125521,1757667059539,-480.0,0.0001589,2]
[385125523,1757667059548,-480.0,0.0001589,2]
[385125525,1757667059558,-480.0,0.0001589,2]
[385125527,1757667059567,-480.0,0.0001589,2]
[385125529,1757667059577,-480.0,0.0001589,2]
[385125531,1757667059586,-480.0,0.0001589,2]
[385125533,1757667059596,-480.0,0.0001589,2]
[385125535,1757667059605,-480.0,0.0001589,2]
[385125537,1757667059615,-480.0,0.0001589,2]
[385125539,1757667059624,-480.0,0.0001589,2]
[385125541,1757667059633,-480.0,0.0001589,2]
[385125543,1757667059643,-480.0,0.0001589,2]
[385125545,1757667059653,-480.0,0.0001589,2]
[385125547,1757667059662,-480.0,0.0001589,2]
[385125549,1757667059672,-480.0,0.0001589,2]
[385125551,1757667059681,-480.0,0.0001589,2]
[385125554,1757667059691,-3536.81,0.0001589,2]
[385125556,1757667059701,-480.0,0.0001589,2]
[385125558,1757667059710,-480.0,0.0001589,2]
[385125560,1757667059719,-480.0,0.0001589,2]
[385125562,1757667059728,-480.0,0.0001589,2]
[385125564,1757667059738,-479.3960093,0.0001589,2]
[385125566,1757667059747,-480.0,0.0001589,2]
[385125568,1757667059755,-2810.72,0.0001589,2]
[385125570,1757667059765,-480.0,0.0001589,2]
[385125572,1757667059774,-480.0,0.0001589,2]
[385125574,1757667059783,-480.0,0.0001589,2]
[385125576,1757667059794,-480.0,0.0001589,2]
[385125578,1757667059804,-480.0,0.0001589,2]
[385125580,1757667059813,-480.0,0.0001589,2]
[385125582,1757667059823,-480.0,0.0001589,2]
[385125584,1757667059832,-1745.75,0.0001589,2]
[385125586,1757667059841,-480.0,0.0001589,2]
[385125588,1757667059851,-1000.0,0.00016057,2]
[385125590,1757667059860,-846.38891172,0.00016057,2]
[385125592,1757667059869,-480.0,0.00016164,2]
[385125602,1757667059952,-480.0,0.00016164,2]
[385125604,1757667059962,-151.0,0.00016164,2]
[385125606,1757667059970,-158.973971,0.00016164,2]
[385125608,1757667059979,-480.0,0.00016164,2]
[385125609,1757667059988,-561.28600447,0.00016164,2]
[385125610,1757667059997,-213.50739287,0.00016164,2]
[385125611,1757667060006,-480.0,0.00016164,2]
[385125612,1757667060016,-480.0,0.00016164,2]
[385125613,1757667060025,-480.0,0.00016164,2]
[385125614,1757667060035,-151.0,0.00016164,2]
[385125615,1757667060045,-151.0,0.00016164,2]
[385125616,1757667060054,-151.0,0.00016164,2]
[385125617,1757667060064,-151.0,0.00016164,2]
[385125619,1757667060074,-151.0,0.00016164,2]
[385125621,1757667060084,-157.87158,0.00016164,2]
[385125623,1757667060094,-480.0,0.00016164,2]
[385125625,1757667060104,-480.0,0.00016164,2]
[385125627,1757667060113,-480.0,0.00016164,2]
[385125629,1757667060122,-480.0,0.00016164,2]
[385125631,1757667060132,-480.0,0.00016164,2]
[385125633,1757667060142,-480.0,0.00016164,2]
[385125635,1757667060152,-480.0,0.00016164,2]
[385125637,1757667060162,-480.0,0.00016164,2]
[385125638,1757667060172,-480.0,0.00016164,2]
[385125639,1757667060183,-480.0,0.00016164,2]
[385125641,1757667060192,-480.0,0.00016164,2]
[385125642,1757667060203,-316.08,0.00016164,2]
[385125644,1757667060213,-480.0,0.00016164,2]
[385125646,1757667060223,-480.0,0.00016164,2]
[385125648,1757667060233,-484.22,0.00016164,2]
[385125650,1757667060245,-480.0,0.00016164,2]
[385125652,1757667060256,-480.0,0.00016164,2]
[385125654,1757667060266,-480.0,0.00016164,2]
[385125656,1757667060276,-480.0,0.00016164,2]
[385125659,1757667060286,-480.0,0.00016164,2]
[385125661,1757667060295,-480.0,0.00016164,2]
[385125663,1757667060305,-480.0,0.00016164,2]
[385125665,1757667060315,-480.0,0.00016164,2]
[385125666,1757667060325,-480.0,0.00016164,2]
[385125667,1757667060335,-480.0,0.00016164,2]
[385125668,1757667060344,-480.0,0.00016164,2]
[385125669,1757667060354,-480.0,0.00016164,2]
[385125670,1757667060364,-480.0,0.00016164,2]
[385125671,1757667060373,-480.0,0.00016164,2]
[385125672,1757667060383,-3536.81,0.00016164,2]
[385125673,1757667060394,-480.0,0.00016164,2]
[385125674,1757667060403,-480.0,0.00016164,2]
[385125676,1757667060412,-480.0,0.00016164,2]
[385125678,1757667060422,-480.0,0.00016164,2]
[385125680,1757667060431,-480.0,0.00016164,2]
[385125682,1757667060440,-2810.72,0.00016164,2]
[385125684,1757667060449,-480.0,0.00016164,2]
[385125686,1757667060459,-480.0,0.00016164,2]
[385125688,1757667060469,-480.0,0.00016164,2]
[385125690,1757667060479,-480.0,0.00016164,2]
[385125692,1757667060490,-480.0,0.00016164,2]
[385125693,1757667060500,-480.0,0.00016164,2]
[385125694,1757667060509,-480.0,0.00016164,2]
[385125695,1757667060519,-151.0,0.00016164,2]
[385125696,1757667060529,-1745.75,0.00016164,2]
[385125697,1757667060540,-422.9092016,0.00016164,2]
[385125698,1757667060560,-480.0,0.00016438,2]
[385125699,1757667060571,-480.0,0.00016438,2]
[385125700,1757667060581,-480.0,0.00016438,2]
[385125701,1757667060592,-480.0,0.00016438,2]
[385125702,1757667060603,-480.0,0.00016438,2]
[385125703,1757667060612,-383.11055727,0.00016438,2]
[385125704,1757667060622,-480.0,0.00016438,2]
[385125705,1757667060634,-480.0,0.00016438,2]
[385125706,1757667060651,-393.5565196,0.00016438,2]
[385125707,1757667060667,-480.0,0.00016438,2]
[385125708,1757667060682,-480.0,0.00016438,2]
[385125709,1757667060698,-480.0,0.00016438,2]
[385125710,1757667060713,-480.0,0.00016438,2]
[385125711,1757667060730,-480.0,0.00016438,2]
[385125712,1757667060746,-480.0,0.00016438,2]
[385125713,1757667060759,-480.0,0.00016438,2]
[385125714,1757667060776,-484.22,0.00016438,2]
[385125715,1757667060790,-480.0,0.00016438,2]
[385125716,1757667060803,-480.0,0.00016438,2]
[385125717,1757667060818,-480.0,0.00016438,2]
[385125718,1757667060834,-480.0,0.00016438,2]
[385125719,1757667060852,-480.0,0.00016438,2]
[385125720,1757667060868,-480.0,0.00016438,2]
[385125721,1757667060880,-480.0,0.00016438,2]
[385125722,1757667060895,-480.0,0.00016438,2]
[385125723,1757667060911,-242.47,0.00016438,2]
[385125724,1757667060924,-480.0,0.00016438,2]
[385125725,1757667060940,-480.0,0.00016438,2]
[385125726,1757667060952,-3536.81,0.00016438,2]
[385125727,1757667060965,-480.0,0.00016438,2]
[385125728,1757667060978,-480.0,0.00016438,2]
[385125729,1757667060991,-480.0,0.00016438,2]
[385125730,1757667061004,-480.0,0.00016438,2]
[385125731,1757667061017,-2810.72,0.00016438,2]
[385125732,1757667061030,-480.0,0.00016438,2]
[385125733,1757667061043,-431.63745301,0.00016438,2]
[385125734,1757667061056,-480.0,0.00016438,2]
[385125735,1757667061069,-480.0,0.00016438,2]
[385125736,1757667061083,-480.0,0.00016438,2]
[385125737,1757667061097,-480.0,0.00016438,2]
[385125738,1757667061110,-151.0,0.00016438,2]
[385125739,1757667061123,-480.0,0.00016438,2]
[385125740,1757667061136,-1745.75,0.00016438,2]
[385125741,1757667061148,-500.65305912,0.00016605,2]
[385125742,1757667061161,-3631.6578535,0.00016611,2]
[385125743,1757667061175,-157.0,0.00016712,2]
[385125744,1757667061188,-232.21531837,0.00016712,2]
[385125745,1757667061204,-157.0,0.00016712,2]
[385125746,1757667061218,-157.0,0.00016712,2]
[385125747,1757667061231,-480.0,0.00016712,2]
[385125749,1757667061246,-262.391,0.00016712,2]
[385125750,1757667061258,-480.0,0.00016712,2]
[385125751,1757667061271,-480.0,0.00016712,2]
[385125752,1757667061284,-480.0,0.00016712,2]
[385125753,1757667061297,-151.0,0.00016712,2]
[385125754,1757667061311,-151.0,0.00016712,2]
[385125755,1757667061325,-151.0,0.00016712,2]
[385125756,1757667061338,-480.0,0.00016712,2]
[385125757,1757667061351,-415.06448609,0.00016712,2]
[385125758,1757667061363,-157.0,0.00016712,2]
[385125759,1757667061376,-157.0,0.00016712,2]
[385125760,1757667061389,-500.0,0.00016712,2]
[385125761,1757667061401,-157.0,0.00016712,2]
[385125762,1757667061414,-157.0,0.00016712,2]
[385125763,1757667061430,-157.0,0.00016712,2]
[385125764,1757667061443,-500.0,0.00016712,2]
[385125765,1757667061457,-157.0,0.00016712,2]
[385125766,1757667061470,-480.0,0.00016712,2]
[385125767,1757667061484,-480.0,0.00016712,2]
[385125768,1757667061497,-480.0,0.00016712,2]
[385125769,1757667061510,-480.0,0.00016712,2]
[385125770,1757667061523,-484.22,0.00016712,2]
[385125771,1757667061537,-480.0,0.00016712,2]
[385125772,1757667061550,-480.0,0.00016712,2]
[385125773,1757667061567,-480.0,0.00016712,2]
[385125774,1757667061582,-590.96833699,0.00016712,2]
[385125775,1757667061596,-480.0,0.00016712,2]
[385125776,1757667061607,-480.0,0.00016712,2]
[385125777,1757667061616,-592.31,0.00016712,2]
[385125778,1757667061755,-480.0,0.00016712,2]
[385125779,1757667061765,-3536.81,0.00016712,2]
[385125780,1757667061775,-480.0,0.00016712,2]
[385125781,1757667061784,-500.0,0.00016712,2]
[385125782,1757667061794,-157.0,0.00016712,2]
[385125783,1757667061803,-157.11565503,0.00016712,2]
[385125784,1757667061812,-480.0,0.00016712,2]
[385125786,1757667061822,-500.0,0.00016712,2]
[385125788,1757667061831,-480.0,0.00016712,2]
[385125790,1757667061840,-480.0,0.00016712,2]
[385125792,1757667061850,-2810.72,0.00016712,2]
[385125794,1757667061859,-480.0,0.00016712,2]
[385125796,1757667061868,-480.0,0.00016712,2]
[385125798,1757667061878,-480.0,0.00016712,2]
[385125800,1757667061887,-480.0,0.00016712,2]
[385125801,1757667061895,-248.97963686,0.00016712,2]
[385125803,1757667061905,-480.0,0.00016712,2]
[385125805,1757667061914,-157.0,0.00016712,2]
[385125807,1757667061924,-500.0,0.00016712,2]
[385125809,1757667061933,-157.0,0.00016712,2]
[385125811,1757667061943,-157.0,0.00016712,2]
[385125813,1757667061952,-157.0,0.00016712,2]
[385125815,1757667061961,-157.0,0.00016712,2]
[385125817,1757667061970,-1745.75,0.00016712,2]
[385125819,1757667061981,-864.0,0.00016905,2]
[385125821,1757667061990,-4123.99287815,0.00016936,5]
[385125823,1757667061999,-157.0,0.00016986,2]
[385125825,1757667062008,-302.93562152,0.00016986,2]
[385125827,1757667062018,-234.97757122,0.00016986,2]
[385125829,1757667062027,-157.0,0.00016986,2]
[385125831,1757667062036,-500.0,0.00016986,2]
[385125833,1757667062045,-157.0,0.00016986,2]
[385125835,1757667062055,-157.0,0.00016986,2]
[385125837,1757667062064,-157.0,0.00016986,2]
[385125839,1757667062073,-500.0,0.00016986,2]
[385125841,1757667062082,-500.0,0.00016986,2]
[385125843,1757667062093,-230.03803334,0.00016986,2]
[385125845,1757667062103,-500.0,0.00016986,2]
[385125847,1757667062112,-157.0,0.00016986,2]
[385125849,1757667062121,-500.0,0.00016986,2]
[385125851,1757667062131,-193.33159042,0.00016986,2]
[385125853,1757667062142,-157.0,0.00016986,2]
[385125855,1757667062151,-157.0,0.00016986,2]
[385125857,1757667062161,-157.0,0.00016986,2]
[385125859,1757667062170,-480.0,0.00016986,2]
[385125861,1757667062179,-480.0,0.00016986,2]
[385125864,1757667062190,-480.0,0.00016986,2]
[385125865,1757667062199,-480.0,0.00016986,2]
[385125868,1757667062209,-480.0,0.00016986,2]
[385125870,1757667062219,-480.0,0.00016986,2]
[385125871,1757667062227,-480.0,0.00016986,2]
[385125874,1757667062237,-484.22,0.00016986,2]
[385125875,1757667062247,-480.0,0.00016986,2]
[385125878,1757667062257,-480.0,0.00016986,2]
[385125880,1757667062267,-480.0,0.00016986,2]
[385125882,1757667062276,-266.18409693,0.00016986,2]
[385125884,1757667062285,-480.0,0.00016986,2]
[385125886,1757667062303,-3536.81,0.00016986,2]
[385125887,1757667062314,-480.0,0.00016986,2]
[385125890,1757667062323,-480.0,0.00016986,2]
[385125892,1757667062332,-480.0,0.00016986,2]
[385125894,1757667062343,-2810.72,0.00016986,2]
[385125896,1757667062351,-576.44,0.00016986,2]
[385125898,1757667062360,-480.0,0.00016986,2]
[385125900,1757667062370,-480.0,0.00016986,2]
[385125902,1757667062379,-480.0,0.00016986,2]
[385125904,1757667062388,-480.0,0.00016986,2]
[385125906,1757667062398,-1745.75,0.00016986,2]
[385125908,1757667062407,-4761.90329946,0.00017215,2]
[385125910,1757667062417,-157.0,0.0001726,2]
[385125912,1757667062426,-242.20433611,0.0001726,2]
[385125914,1757667062435,-502.31691441,0.0001726,2]
[385125916,1757667062444,-207.02705941,0.0001726,2]
[385125918,1757667062453,-157.0,0.0001726,2]
[385125920,1757667062463,-157.0,0.0001726,2]
[385125922,1757667062472,-500.0,0.0001726,2]
[385125924,1757667062482,-290.7417111,0.0001726,2]
[385125926,1757667062491,-500.0,0.0001726,2]
[385125928,1757667062501,-157.0,0.0001726,2]
[385125930,1757667062510,-159.06067573,0.0001726,2]
[385125932,1757667062520,-180.4832997,0.0001726,2]
[385125934,1757667062530,-157.0,0.0001726,2]
[385125936,1757667062539,-235.45507903,0.0001726,2]
[385125938,1757667062548,-480.0,0.0001726,2]
[385125940,1757667062558,-480.0,0.0001726,2]
[385125942,1757667062568,-480.0,0.0001726,2]
[385125945,1757667062578,-480.0,0.0001726,2]
[385125947,1757667062587,-480.0,0.0001726,2]
[385125949,1757667062596,-480.0,0.0001726,2]
[385125951,1757667062605,-378.90780222,0.0001726,2]
[385125953,1757667062615,-484.22,0.0001726,2]
[385125955,1757667062624,-480.0,0.0001726,2]
[385125957,1757667062634,-480.0,0.0001726,2]
[385125959,1757667062644,-480.0,0.0001726,2]
[385125961,1757667062653,-480.0,0.0001726,2]
[385125963,1757667062663,-3536.81,0.0001726,2]
[385125965,1757667062672,-480.0,0.0001726,2]
[385125967,1757667062681,-243.36,0.0001726,2]
[385125969,1757667062690,-480.0,0.0001726,2]
[385125971,1757667062699,-2810.72,0.0001726,2]
[385125973,1757667062709,-480.0,0.0001726,2]
[385125975,1757667062718,-480.0,0.0001726,2]
[385125977,1757667062728,-480.0,0.0001726,2]
[385125979,1757667062737,-1745.75,0.0001726,2]
[385125981,1757667062746,-810.3323984,0.00017261,2]
[385125983,1757667062755,-193.62582011,0.00017534,2]
[385125985,1757667062763,-157.0,0.00017534,2]
[385125987,1757667062773,-231.64016978,0.00017534,2]
[385125989,1757667062782,-500.0,0.00017534,2]
[385125991,1757667062791,-500.0,0.00017534,2]
[385125993,1757667062800,-277.0918819,0.00017534,2]
[385125995,1757667062809,-157.0,0.00017534,2]
[385125997,1757667062819,-480.0,0.00017534,2]
[385125999,1757667062828,-480.0,0.00017534,2]
[385126001,1757667062837,-260.0,0.00017534,2]
[385126003,1757667062846,-260.0,0.00017534,2]
[385126005,1757667062854,-480.0,0.00017534,2]
[385126007,1757667062863,-480.0,0.00017534,2]
[385126009,1757667062872,-484.22,0.00017534,2]
[385126011,1757667062882,-480.0,0.00017534,2]
[385126013,1757667062891,-577.750054,0.00017534,2]
[385126015,1757667062900,-577.750054,0.00017534,2]
[385126018,1757667062910,-577.750054,0.00017534,2]
[385126020,1757667062919,-151.0,0.00017534,2]
[385126022,1757667062928,-577.750054,0.00017534,2]
[385126024,1757667062938,-480.0,0.00017534,2]
[385126026,1757667062947,-480.0,0.00017534,2]
[385126028,1757667062956,-1247.005434,0.00017534,2]
[385126030,1757667062965,-1247.005434,0.00017534,2]
[385126032,1757667062974,-1247.005434,0.00017534,2]
[385126034,1757667062983,-1247.005434,0.00017534,2]
[385126036,1757667062992,-480.0,0.00017534,2]
[385126038,1757667063001,-3536.81,0.00017534,2]
[385126040,1757667063010,-480.0,0.00017534,2]
[385126042,1757667063019,-2810.72,0.00017534,2]
[385126044,1757667063029,-480.0,0.00017534,2]
[385126046,1757667063038,-1745.75,0.00017534,2]
[385126048,1757667063048,-227.57383559,0.00017808,2]
[385126050,1757667063058,-500.0,0.00017808,2]
[385126052,1757667063068,-500.0,0.00017808,2]
[385126054,1757667063077,-284.33140433,0.00017808,2]
[385126056,1757667063086,-151.0,0.00017808,2]
[385126058,1757667063096,-151.0,0.00017808,2]
[385126060,1757667063105,-160.743067,0.00017808,2]
[385126062,1757667063115,-480.0,0.00017808,2]
[385126064,1757667063125,-480.0,0.00017808,2]
[385126067,1757667063134,-480.0,0.00017808,2]
[385126069,1757667063144,-480.0,0.00017808,2]
[385126071,1757667063155,-151.0,0.00017808,2]
[385126073,1757667063164,-151.0,0.00017808,2]
[385126075,1757667063174,-166.09283,0.00017808,2]
[385126077,1757667063183,-166.09283,0.00017808,2]
[385126079,1757667063192,-166.09283,0.00017808,2]
[385126081,1757667063202,-166.09283,0.00017808,2]
[385126083,1757667063211,-484.22,0.00017808,2]
[385126085,1757667063221,-480.0,0.00017808,2]
[385126087,1757667063231,-480.0,0.00017808,2]
[385126089,1757667063240,-480.0,0.00017808,2]
[385126091,1757667063253,-480.0,0.00017808,2]
[385126093,1757667063262,-3536.81,0.00017808,2]
[385126095,1757667063272,-2810.72,0.00017808,2]
[385126097,1757667063281,-383.88,0.00017808,2]
[385126099,1757667063292,-1745.75,0.00017808,2]
[385126101,1757667063301,-4171.9386829,0.00017907,2]
[385126104,1757667063311,-500.0,0.00018082,2]
[385126106,1757667063323,-189.4,0.00018082,2]
[385126108,1757667063332,-480.0,0.00018082,2]
[385126110,1757667063342,-480.0,0.00018082,2]
[385126112,1757667063351,-480.0,0.00018082,2]
[385126114,1757667063360,-480.0,0.00018082,2]
[385126116,1757667063369,-484.22,0.00018082,2]
[385126118,1757667063378,-480.0,0.00018082,2]
[385126120,1757667063387,-480.0,0.00018082,2]
[385126121,1757667063397,-480.0,0.00018082,2]
[385126123,1757667063406,-480.0,0.00018082,2]
[385126125,1757667063416,-3536.81,0.00018082,2]
[385126128,1757667063426,-2810.72,0.00018082,2]
[385126129,1757667063435,-1745.75,0.00018082,2]
[385126131,1757667063444,-478.25761594,0.00018261,2]
[385126133,1757667063454,-500.0,0.00018356,2]
[385126135,1757667063464,-153.73635546,0.00018356,2]
[385126137,1757667063473,-480.0,0.00018356,2]
[385126139,1757667063482,-315.7,0.00018356,2]
[385126141,1757667063491,-247.215923,0.00018356,2]
[385126143,1757667063501,-247.215923,0.00018356,2]
[385126145,1757667063510,-247.215923,0.00018356,2]
[385126147,1757667063520,-247.215923,0.00018356,2]
[385126149,1757667063530,-151.0,0.00018356,2]
[385126151,1757667063539,-151.0,0.00018356,2]
[385126153,1757667063548,-151.0,0.00018356,2]
[385126155,1757667063558,-151.0,0.00018356,2]
[385126157,1757667063567,-151.0,0.00018356,2]
[385126159,1757667063577,-151.0,0.00018356,2]
[385126161,1757667063586,-480.0,0.00018356,2]
[385126163,1757667063596,-484.22,0.00018356,2]
[385126165,1757667063606,-480.0,0.00018356,2]
[385126167,1757667063616,-480.0,0.00018356,2]
[385126169,1757667063625,-480.0,0.00018356,2]
[385126171,1757667063635,-480.0,0.00018356,2]
[385126173,1757667063644,-3536.81,0.00018356,2]
[385126175,1757667063653,-2810.72,0.00018356,2]
[385126177,1757667063663,-1745.75,0.00018356,2]
[385126179,1757667063672,-246.086272,0.00018493,2]
[385126181,1757667063681,-976.0,0.00018564,2]
[385126183,1757667063691,-654.379,0.00018564,2]
[385126185,1757667063700,-2159.799,0.00018564,2]
[385126187,1757667063710,-409.406,0.00018564,2]
[385126189,1757667063719,-4761.90329946,0.00018609,2]
[385126191,1757667063729,-500.0,0.0001863,2]
[385126193,1757667063738,-520.0,0.0001863,2]
[385126195,1757667063747,-352.22057354,0.0001863,2]
[385126208,1757667063856,-484.22,0.0001863,2]
[385126210,1757667063866,-509.97,0.0001863,2]
[385126212,1757667063875,-480.0,0.0001863,2]
[385126214,1757667063885,-480.0,0.0001863,2]
[385126216,1757667063894,-160.0,0.0001863,2]
[385126218,1757667063903,-151.0,0.0001863,2]
[385126220,1757667063913,-151.0,0.0001863,2]
[385126222,1757667063922,-151.0,0.0001863,2]
[385126224,1757667063932,-213.451996,0.0001863,2]
[385126226,1757667063941,-151.0,0.0001863,2]
[385126228,1757667063951,-229.030061,0.0001863,2]
[385126230,1757667063960,-229.030061,0.0001863,2]
[385126232,1757667063969,-229.030061,0.0001863,2]
[385126234,1757667063979,-229.030061,0.0001863,2]
[385126236,1757667063988,-3536.81,0.0001863,2]
[385126238,1757667063998,-418.889356,0.0001863,2]
[385126240,1757667064008,-418.889356,0.0001863,2]
[385126242,1757667064017,-418.889356,0.0001863,2]
[385126244,1757667064027,-151.0,0.0001863,2]
[385126246,1757667064036,-418.889356,0.0001863,2]
[385126248,1757667064046,-2810.72,0.0001863,2]
[385126250,1757667064055,-1745.75,0.0001863,2]
[385126252,1757667064064,-500.0,0.00018904,2]
[385126254,1757667064073,-151.0,0.00018904,2]
[385126256,1757667064083,-484.22,0.00018904,2]
[385126258,1757667064092,-206.63853827,0.00018904,2]
[385126260,1757667064101,-480.0,0.00018904,2]
[385126262,1757667064110,-3536.81,0.00018904,2]
[385126264,1757667064119,-2810.72,0.00018904,2]
[385126266,1757667064129,-1745.75,0.00018904,2]
[385126268,1757667064139,-150.52137978,0.00019178,2]
[385126270,1757667064148,-151.0,0.00019178,2]
[385126272,1757667064157,-151.0,0.00019178,2]
[385126274,1757667064167,-151.0,0.00019178,2]
[385126276,1757667064176,-151.0,0.00019178,2]
[385126278,1757667064186,-163.288962,0.00019178,2]
[385126280,1757667064195,-163.288962,0.00019178,2]
[385126282,1757667064204,-163.288962,0.00019178,2]
[385126284,1757667064212,-154.62876,0.00019178,2]
[385126286,1757667064222,-163.288962,0.00019178,2]
[385126288,1757667064232,-484.22,0.00019178,2]
[385126290,1757667064242,-362.67247012,0.00019178,2]
[385126292,1757667064255,-3536.81,0.00019178,2]
[385126294,1757667064264,-2810.72,0.00019178,2]
[385126295,1757667064273,-1745.75,0.00019178,2]
[385126297,1757667064283,-150.09053132,0.00019178,2]
[385126299,1757667064292,-484.22,0.00019452,2]
[385126301,1757667064302,-3536.81,0.00019452,2]
[385126303,1757667064312,-2810.72,0.00019452,2]
[385126305,1757667064322,-1745.75,0.00019452,2]
[385126307,1757667064331,-484.22,0.00019726,2]